fUSD/lending_fUSD_20251224
["ID","MTS","AMOUNT","RATE_DAILY","PERIOD"]
[399684209,1766617855252,-1220.11,0.00023431,2]
[399684210,1766617855263,-200.0,0.000235,2]
[399684211,1766617855274,-362.0,0.000235,7]
[399684212,1766617855285,-416.03518578,0.00023557,2]
[399684213,1766617855296,-500.0,0.00023699,2]
[399684214,1766617855308,-78776.99586453,0.000237,7]
[399684215,1766617855332,-1227.85355765,0.000237,7]
[399684216,1766617900893,1000.0,0.00012414,2]
[399684217,1766618081249,219.8666,0.00012414,2]
[399684218,1766618505714,1908.8,8.211e-05,2]
[399684219,1766618505939,1908.8,8.643e-05,2]
[399684220,1766618506130,1908.8,9.075e-05,2]
[399684221,1766618506324,1908.8,9.508e-05,2]
[399684222,1766618506545,1144.9434,9.94e-05,2]
[399684223,1766618506574,763.8566,9.94e-05,2]
[399684224,1766618506758,1908.8,0.00010372,2]
[399684225,1766618507160,1908.8,0.00010804,2]
[399684226,1766618507365,1908.8,0.00011236,2]
[399684227,1766618507562,1908.8,0.00011668,2]
[399684228,1766618507764,1600.9534,0.00012101,2]
[399684229,1766618507794,307.8466,0.00012101,2]
[399684230,1766618508080,1908.8,0.00012533,2]
[399684231,1766618508279,1908.8,0.00012965,2]
[399684232,1766618759191,2350.23441356,8e-05,2]
[399684234,1766618828750,205.0,9.8e-05,2]
[399684235,1766618832608,259.09576182,0.000101,2]
[399684236,1766618863366,2509.09961018,0.00013,2]
[399684237,1766618867797,4676.58021444,0.00012,2]
[399684238,1766618867824,1253.12267652,0.00012,2]
[399684239,1766618893376,1925.97390625,0.0001,2]
[399684240,1766618895262,390.37563915,7.888e-05,2]
[399684242,1766618904585,2727.54085448,0.0001,2]
[399684243,1766618907159,267.47871705,0.000107,2]
[399684246,1766618914229,7004.99042847,0.0001,2]
[399684247,1766618914256,7006.72713764,0.0001,2]
[399684256,1766619031747,-260.0,0.00013397,2]
[399684257,1766619031757,-178.39,0.00013397,2]
[399684258,1766619031822,-776.15703811,0.00013397,2]
[399684259,1766619031896,-299.99,0.00013397,2]
[399684260,1766619031908,-654.26296189,0.00013397,2]
[399684261,1766619031917,-250.0,0.00013451,2]
[399684291,1766619032235,-300.0,0.00013451,2]
[399684292,1766619032248,-1000.0,0.000135,2]
[399684293,1766619032259,-300.0,0.00013505,2]
[399684294,1766619032268,-369.10511377,0.0001361,2]
[399684295,1766619032278,-300.0,0.0001361,2]
[399684296,1766619032288,-600.0,0.00013722,2]
[399684297,1766619032298,-1200.0,0.00013828,2]
[399684298,1766619032308,-1716.63192434,0.00013829,2]
[399684299,1766619032319,-192.16807566,0.00013829,2]
[399684300,1766619032329,-554.85496774,0.00014248,2]
[399684301,1766619032341,-445.14503226,0.00014248,2]
[399684302,1766619032351,-300.0,0.00014259,2]
[399684303,1766619032360,-89.83192434,0.00014259,2]
[399684304,1766619032372,-210.16807566,0.00014259,2]
[399684305,1766619032382,-643.75939495,0.0001426,2]
[399684309,1766619037882,-556.24060505,0.0001426,2]
[399684310,1766619037893,-406.78761183,0.00014261,2]
[399684311,1766619037906,-470.0,0.00014261,2]
[399684317,1766619038400,-288.36794691,0.00014261,2]
[399684318,1766619038413,-743.64444126,0.00014261,2]
[399684319,1766619038423,-267.57584754,0.00014271,2]
[399684320,1766619038434,-470.16878583,0.00014693,2]
[399684321,1766619038445,-762.64682151,0.00014693,2]
[399684322,1766619038483,-480.96,0.00014693,2]
[399684323,1766619038496,-195.02439266,0.00014693,2]
[399684324,1766619038511,-150.0,0.00014736,2]
[399684325,1766619038522,-600.0,0.00014737,2]
[399684326,1766619038533,-459.31524973,0.00014737,2]
[399684327,1766619038543,-600.0,0.00014737,2]
[399684328,1766619038554,-195.0,0.00014737,2]
[399684329,1766619038564,-300.0,0.00014737,2]
[399684330,1766619038574,-2500.0,0.00014737,2]
[399684331,1766619038584,-427.15917833,0.00014737,2]
[399684332,1766619038595,-250.0,0.00014737,2]
[399684333,1766619038605,-300.0,0.00014737,2]
[399684334,1766619038615,-195.0,0.00014737,2]
[399684335,1766619038624,-195.0,0.00014737,2]
[399684336,1766619038635,-195.0,0.00014737,2]
[399684337,1766619038644,-150.0,0.00014921,2]
[399684338,1766619038655,-5014.92,0.00014999,2]
[399684339,1766619038665,-242.0690653,0.00015,2]
[399684340,1766619038675,-2041.47960317,0.00015,2]
[399684341,1766619038685,-7947.26999932,0.00015,2]
[399684342,1766619038695,-14967.37562553,0.00015,2]
[399684345,1766619039975,-6395.72784003,0.00015,2]
[399684347,1766619039985,-1155.1798605,0.00015,2]
[399684349,1766619039995,-5949.09229947,0.00015,2]
[399684351,1766619040006,-8904.92513306,0.00015,2]
[399684353,1766619040018,-1434.6,0.00015,2]
[399684356,1766619040030,-2054.98497725,0.00015,2]
[399684357,1766619040041,-15252.1130497,0.00015,2]
[399684358,1766619040050,-1908.8,0.00015126,2]
[399684359,1766619040060,-1680.0,0.00015211,2]
[399684360,1766619040069,-322.6107,0.0001527,2]
[399684361,1766619040079,-217.15233878,0.0001527,2]
[399684362,1766619040089,-578.20924308,0.0001527,2]
[399684363,1766619040100,-547.75912978,0.000153,2]
[399684364,1766619040113,-969.88087022,0.000153,2]
[399684365,1766619040123,-506.05021686,0.000154,2]
[399684366,1766619040133,-954.94568934,0.00015556,2]
[399684367,1766619040192,-3802.4008654,0.00015556,2]
[399684368,1766619040202,-1908.8,0.00015558,2]
[399684369,1766619040211,-420.0,0.00015617,2]
[399684370,1766619040222,-420.0,0.00015617,2]
[399684371,1766619040232,-151.0,0.00015665,2]
[399684372,1766619040242,-154.62,0.00015665,2]
[399684373,1766619040251,-151.0,0.00015788,2]
[399684374,1766619040262,-150.0,0.00015856,2]
[399684375,1766619040272,-161.4058183,0.00015945,2]
[399684376,1766619040282,-1908.8,0.0001599,2]
[399684377,1766619040291,-574.13034755,0.00015995,2]
[399684380,1766619040344,-83.4142678,0.00015995,2]
[399684382,1766619040354,-315.68717561,0.00015999,2]
[399684383,1766619040364,-500.0,0.00015999,2]
[399684384,1766619040373,-6772.25268696,0.00016,2]
[399684385,1766619040383,-215539.11468127,0.00016,2]
[399684386,1766619040392,-599.55417067,0.00016,2]
[399684387,1766619040402,-1000.0,0.00016029,2]
[399684388,1766619040411,-883.99,0.00016045,2]
[399684389,1766619040421,-161.40581825,0.00016053,2]
[399684390,1766619040431,-161.40581825,0.00016162,2]
[399684391,1766619040440,-384.79665386,0.0001617,2]
[399684392,1766619040450,-5000.00470814,0.000162,5]
[399684393,1766619040459,-161.40581825,0.0001627,2]
[399684394,1766619040469,-500.0,0.00016338,2]
[399684395,1766619040479,-161.40581825,0.00016379,2]
[399684396,1766619040489,-1908.8,0.00016422,2]
[399684397,1766619040499,-200.0,0.00016428,2]
[399684398,1766619040508,-200.0,0.00016428,2]
[399684399,1766619040518,-500.0,0.00016428,2]
[399684400,1766619040527,-500.0,0.00016428,2]
[399684401,1766619040537,-500.0,0.00016428,2]
[399684402,1766619040547,-500.0,0.00016428,2]
[399684403,1766619040558,-500.0,0.00016428,2]
[399684404,1766619040567,-623.58710448,0.00016428,2]
[399684405,1766619040577,-250.0,0.00016428,2]
[399684406,1766619040586,-500.0,0.00016428,2]
[399684407,1766619040600,-500.0,0.00016428,2]
[399684408,1766619040610,-250.0,0.00016428,2]
[399684409,1766619040619,-500.0,0.00016428,2]
[399684410,1766619040629,-500.0,0.00016428,2]
[399684411,1766619040639,-250.0,0.00016428,2]
[399684412,1766619040648,-500.0,0.00016428,2]
[399684413,1766619040657,-500.0,0.00016428,2]
[399684414,1766619040667,-500.0,0.00016428,2]
[399684415,1766619040676,-500.0,0.00016428,2]
[399684416,1766619040686,-500.0,0.00016428,2]
[399684417,1766619040695,-500.0,0.00016428,2]
[399684418,1766619040705,-500.0,0.00016428,2]
[399684419,1766619040715,-500.0,0.00016428,2]
[399684420,1766619040724,-500.0,0.00016428,2]
[399684421,1766619040735,-500.0,0.00016428,2]
[399684422,1766619040744,-500.0,0.00016428,2]
[399684423,1766619040754,-500.0,0.00016428,2]
[399684424,1766619040763,-500.0,0.00016428,2]
[399684425,1766619040773,-500.0,0.00016428,2]
[399684426,1766619040783,-500.0,0.00016428,2]
[399684427,1766619040792,-500.0,0.00016428,2]
[399684428,1766619040801,-500.0,0.00016428,2]
[399684429,1766619040811,-500.0,0.00016428,2]
[399684430,1766619040820,-574.12855637,0.00016428,2]
[399684431,1766619040829,-250.0,0.00016428,2]
[399684432,1766619040839,-500.0,0.00016428,2]
[399684433,1766619040848,-250.0,0.00016428,2]
[399684434,1766619040857,-151.0,0.00016428,2]
[399684435,1766619040867,-500.0,0.00016428,2]
[399684436,1766619040876,-151.0,0.00016428,2]
[399684437,1766619040886,-333.54777997,0.00016428,2]
[399684438,1766619040896,-151.0,0.00016428,2]
[399684439,1766619040905,-151.0,0.00016428,2]
[399684440,1766619040915,-151.0,0.00016428,2]
[399684441,1766619040924,-151.0,0.00016428,2]
[399684442,1766619040934,-151.0,0.00016428,2]
[399684443,1766619040944,-151.0,0.00016428,2]
[399684444,1766619040954,-151.0,0.00016428,2]
[399684445,1766619040963,-151.0,0.00016428,2]
[399684446,1766619040973,-151.0,0.00016428,2]
[399684447,1766619040982,-200.0,0.00016428,2]
[399684448,1766619040991,-10487.4,0.00016438,2]
[399684449,1766619041001,-266.97929396,0.00016438,2]
[399684450,1766619041011,-161.40581825,0.00016487,2]
[399684451,1766619041021,-999.0,0.00016561,3]
[399684452,1766619041031,-161.40581825,0.00016596,2]
[399684453,1766619041042,-334.5472959,0.00016639,2]
[399684454,1766619041051,-161.40581825,0.00016704,2]
[399684455,1766619041061,-1200.0,0.00016732,2]
[399684456,1766619041071,-161.40581825,0.00016813,2]
[399684457,1766619041080,-819.57735028,0.000169,2]
[399684458,1766619041091,-152.1933766,0.000169,2]
[399684459,1766619041100,-1836.8800633,0.000169,2]
[399684460,1766619041110,-579.1102695,0.000169,2]
[399684461,1766619041119,-216.55418195,0.000169,2]
[399684462,1766619041129,-3001.38,0.00016917,2]
[399684463,1766619041139,-161.40581825,0.00016921,2]
[399684464,1766619041148,-500.0,0.00016954,2]
[399684465,1766619041158,-500.0,0.00016973,2]
[399684466,1766619041168,-150.0,0.00016973,2]
[399684467,1766619041180,-517.71402823,0.00016976,2]
[399684468,1766619041190,-300.0,0.00016999,2]
[399684469,1766619041200,-250.0,0.00017,2]
[399684470,1766619041209,-52851.78194723,0.00017,2]
[399684471,1766619041268,-296.9,0.00017,2]
[399684472,1766619041280,-16957.25349034,0.00017,2]
[399684475,1766619042971,-470.70224448,0.00017,2]
[399684476,1766619042994,-803.81612322,0.00017,2]
[399684477,1766619043008,-863.68460443,0.00017,2]
[399684487,1766619604858,161.06,0.00011863,2]
[399684488,1766619637814,209.0,9.989e-05,2]
[399684489,1766619638325,209.0,9.989e-05,2]
[399684490,1766619638874,209.0,9.989e-05,2]
[399684507,1766620231901,-2390.30605478,0.000132,2]
[399684508,1766620231912,-500.0,0.00013297,2]
[399684509,1766620231921,-250.0,0.00013297,2]
[399684510,1766620231931,-259.0,0.00013297,2]
[399684511,1766620231941,-250.0,0.00013444,2]
[399684512,1766620231951,-158.49759505,0.00013599,2]
[399684513,1766620231960,-263.8,0.00013624,2]
[399684514,1766620231970,-166.66,0.00013631,2]
[399684515,1766620231980,-1000.0,0.00013699,2]
[399684516,1766620231990,-1048.29,0.00013735,2]
[399684517,1766620232000,-197.89081002,0.0001374,2]
[399684518,1766620232010,-300.0,0.00013798,2]
[399684519,1766620232019,-1200.0,0.00013798,2]
[399684520,1766620232029,-14799.05,0.00013799,2]
[399684521,1766620232038,-96648.07732036,0.00013836,2]
[399684522,1766620232050,-33724.97733984,0.00013836,2]
[399684523,1766620232062,-38374.41200352,0.00013836,2]
[399684524,1766620232074,-3849.3494144,0.00013836,2]
[399684525,1766620232086,-1079.14363337,0.00013836,2]
[399684526,1766620232098,-915.89127462,0.00013836,2]
[399684527,1766620232110,-352.59879329,0.00013836,2]
[399684528,1766620232121,-1916.93521517,0.00013836,2]
[399684529,1766620232138,-383.77616865,0.00013836,2]
[399684530,1766620232153,-825.596331,0.00013836,2]
[399684566,1766620238679,-315.68717561,0.00013835,2]
[399684567,1766620238690,-500.0,0.00013835,2]
[399684568,1766620238701,-4074.65321739,0.00013836,2]
[399684569,1766620238723,-817854.58928839,0.00013836,2]
[399684570,1766620238734,-161.06,0.0001384,2]
[399684571,1766620238744,-986.89,0.00013877,2]
[399684572,1766620238755,-166.66,0.00013918,2]
[399684573,1766620238765,-2421.76,0.00013936,2]
[399684574,1766620238775,-166.66,0.00014205,2]
[399684575,1766620238786,-1215.09,0.00014407,2]
[399684576,1766620238797,-3240.0,0.00014444,2]
[399684577,1766620238808,-166.66,0.00014492,2]
[399684578,1766620238818,-9381.52960864,0.0001451,2]
[399684579,1766620238829,-195.0,0.00014627,2]
[399684580,1766620238839,-195.0,0.00014627,2]
[399684581,1766620238850,-250.0,0.00014627,2]
[399684582,1766620238861,-195.0,0.00014627,2]
[399684583,1766620238872,-300.0,0.00014627,2]
[399684584,1766620238882,-600.0,0.00014627,2]
[399684585,1766620238893,-195.0,0.00014627,2]
[399684586,1766620238904,-195.0,0.00014627,2]
[399684587,1766620238915,-30832.23,0.00014648,2]
[399684588,1766620238925,-166.66,0.00014779,2]
[399684589,1766620238936,-158.49759505,0.00014799,2]
[399684590,1766620238948,-2350.0362,0.000148,2]
[399684591,1766620238959,-515.3031,0.000148,2]
[399684592,1766620238969,-226.08054695,0.0001485,2]
[399684593,1766620238980,-384.79665386,0.0001485,2]
[399684594,1766620238991,-1066.02628005,0.0001485,2]
[399684595,1766620239002,-209.82756379,0.0001485,2]
[399684596,1766620239017,-150.0,0.0001489,2]
[399684597,1766620239027,-500.0,0.00014891,2]
[399684598,1766620239037,-943.33,0.00014891,2]
[399684599,1766620239049,-200.0,0.00014891,2]
[399684600,1766620239059,-151.0,0.00014891,2]
[399684601,1766620239070,-500.0,0.00014891,2]
[399684602,1766620239080,-151.0,0.00014891,2]
[399684603,1766620239091,-500.0,0.00014891,2]
[399684604,1766620239101,-151.0,0.00014891,2]
[399684605,1766620239112,-500.0,0.00014891,2]
[399684606,1766620239123,-151.0,0.00014891,2]
[399684607,1766620239133,-500.0,0.00014891,2]
[399684608,1766620239144,-151.0,0.00014891,2]
[399684609,1766620239154,-500.0,0.00014891,2]
[399684610,1766620239164,-151.0,0.00014891,2]
[399684611,1766620239174,-500.0,0.00014891,2]
[399684612,1766620239185,-151.0,0.00014891,2]
[399684613,1766620239195,-500.0,0.00014891,2]
[399684614,1766620239205,-500.0,0.00014891,2]
[399684615,1766620239215,-151.0,0.00014891,2]
[399684616,1766620239225,-500.0,0.00014891,2]
[399684617,1766620239235,-500.0,0.00014891,2]
[399684618,1766620239246,-151.0,0.00014891,2]
[399684619,1766620239255,-500.0,0.00014891,2]
[399684620,1766620239265,-500.0,0.00014891,2]
[399684621,1766620239276,-158.67000356,0.00014891,2]
[399684622,1766620239286,-500.0,0.00014891,2]
[399684623,1766620239296,-500.0,0.00014891,2]
[399684624,1766620239306,-500.0,0.00014891,2]
[399684625,1766620239316,-500.0,0.00014891,2]
[399684626,1766620239326,-500.0,0.00014891,2]
[399684627,1766620239337,-500.0,0.00014891,2]
[399684628,1766620239347,-500.0,0.00014891,2]
[399684629,1766620239357,-500.0,0.00014891,2]
[399684630,1766620239368,-500.0,0.00014891,2]
[399684631,1766620239384,-500.0,0.00014891,2]
[399684632,1766620239394,-500.0,0.00014891,2]
[399684633,1766620239404,-200.0,0.00014891,2]
[399684634,1766620239415,-151.0,0.00014891,2]
[399684635,1766620239425,-151.0,0.00014891,2]
[399684636,1766620239435,-151.0,0.00014891,2]
[399684637,1766620239445,-151.0,0.00014891,2]
[399684638,1766620239455,-151.0,0.00014891,2]
[399684639,1766620239465,-151.0,0.00014891,2]
[399684640,1766620239476,-151.0,0.00014891,2]
[399684641,1766620239486,-200.0,0.00014891,2]
[399684642,1766620239496,-151.0,0.00014891,2]
[399684643,1766620239506,-151.0,0.00014891,2]
[399684644,1766620239517,-151.0,0.00014891,2]
[399684645,1766620239527,-151.0,0.00014891,2]
[399684646,1766620239538,-500.0,0.00014899,2]
[399684647,1766620239549,-1979.08,0.00014899,2]
[399684648,1766620239560,-211.78,0.00014899,2]
[399684649,1766620239570,-287.11465544,0.00014899,2]
[399684650,1766620239583,-500.0,0.00014899,2]
[399684651,1766620239593,-150.0,0.0001495,2]
[399684652,1766620239605,-166.66,0.00015066,2]
[399684653,1766620239615,-1066.02628003,0.00015078,2]
[399684654,1766620239626,-209.82756372,0.00015078,2]
[399684655,1766620239637,-166.66,0.00015088,2]
[399684656,1766620239648,-300.0,0.0001512,2]
[399684657,1766620239658,-943.33,0.00015165,2]
[399684658,1766620239668,-1680.0,0.00015178,2]
[399684659,1766620239679,-263.9,0.00015227,2]
[399684660,1766620239689,-150.0,0.00015288,2]
[399684661,1766620239702,-1066.02628003,0.00015306,2]
[399684662,1766620239713,-209.82756372,0.00015306,2]
[399684663,1766620239723,-533.64,0.0001531,2]
[399684664,1766620239735,-165.42,0.00015324,2]
[399684665,1766620239751,-150.0,0.00015404,2]
[399684666,1766620239761,-943.33,0.00015439,2]
[399684667,1766620239771,-1066.02628003,0.00015533,2]
[399684668,1766620239782,-209.82756372,0.00015533,2]
[399684669,1766620239792,-166.66,0.00015586,2]
[399684670,1766620239802,-151.0,0.00015653,2]
[399684671,1766620239812,-151.0,0.00015653,2]
[399684672,1766620239822,-500.0,0.00015671,2]
[399684673,1766620239833,-943.33,0.00015713,2]
[399684674,1766620239843,-1066.02628003,0.00015761,2]
[399684675,1766620239855,-209.82756372,0.00015761,2]
[399684676,1766620239865,-161.06,0.00015817,2]
[399684677,1766620239876,-200.0,0.00015845,2]
[399684678,1766620239887,-943.33,0.00015987,2]
[399684679,1766620239897,-1066.02628003,0.00015989,2]
[399684680,1766620239908,-209.82756372,0.00015989,2]
[399684683,1766620239918,-255.0,0.00016022,2]
[399684684,1766620239929,-166.66,0.00016084,2]
[399684686,1766620239939,-1066.02628003,0.00016217,2]
[399684687,1766620239949,-500.0,0.00016247,2]
[399684688,1766620239960,-943.33,0.00016261,2]
[399684689,1766620239970,-384.79665381,0.00016276,2]
[399684690,1766620239981,-1852.42,0.00016415,2]
[399684691,1766620239992,-12584.9,0.00016438,2]
[399684692,1766620240002,-355.66453252,0.00016438,2]
[399684693,1766620240013,-12188.8,0.00016438,2]
[399684694,1766620240024,-1066.02628003,0.00016444,2]
[399684695,1766620240035,-943.33,0.00016535,2]
[399684696,1766620240045,-166.66,0.00016582,2]
[399684697,1766620240055,-2351.0,0.00016696,2]
[399684698,1766620240066,-150.0,0.00016699,2]
[399684699,1766620240076,-200.0,0.00016699,2]
[399684700,1766620240087,-500.0,0.00016699,2]
[399684701,1766620240100,-500.0,0.00016699,2]
[399684702,1766620240111,-150.0,0.00016699,2]
[399684703,1766620240121,-150.0,0.00016699,2]
[399684704,1766620240132,-150.0,0.00016699,2]
[399684705,1766620240143,-150.0,0.00016699,2]
[399684706,1766620240153,-500.0,0.00016712,2]
[399684707,1766620240163,-500.0,0.00016726,2]
[399684708,1766620240173,-500.0,0.00016726,2]
[399684709,1766620240183,-150.0,0.00016726,2]
[399684710,1766620240194,-150.0,0.00016726,2]
[399684711,1766620240204,-500.0,0.00016754,2]
[399684712,1766620240214,-150.0,0.00016754,2]
[399684713,1766620240224,-150.0,0.00016754,2]
[399684714,1766620240233,-150.0,0.00016754,2]
[399684715,1766620240243,-500.0,0.00016781,2]
[399684716,1766620240254,-150.0,0.00016781,2]
[399684717,1766620240264,-500.0,0.00016809,2]
[399684718,1766620240275,-200.0,0.00016809,2]
[399684719,1766620240288,-943.4,0.00016809,2]
[399684720,1766620240303,-530.0,0.00016822,2]
[399684721,1766620240315,-500.0,0.00016836,2]
[399684722,1766620240327,-500.0,0.00016863,2]
[399684723,1766620240339,-13059.5385478,0.00016887,2]
[399684724,1766620240352,-262307.8437003,0.00016887,2]
[399684725,1766620240363,-7911.8724195,0.00016887,2]
[399684726,1766620240375,-500.0,0.00016891,2]
[399684728,1766620240386,-152.1933766,0.000169,2]
[399684729,1766620240396,-579.1102695,0.000169,2]
[399684730,1766620240407,-1836.8800633,0.000169,2]
[399684731,1766620240418,-819.57735028,0.000169,2]
[399684732,1766620240430,-260.98879975,0.00016918,2]
[399684733,1766620240441,-196.59225828,0.00016956,2]
[399684734,1766620240452,-500.0,0.00016973,2]
[399684735,1766620240463,-500.0,0.00016973,2]
[399684736,1766620240474,-500.0,0.00016973,2]
[399684737,1766620240484,-500.0,0.00016973,2]
[399684738,1766620240495,-500.0,0.00016973,2]
[399684739,1766620240506,-500.0,0.00016973,2]
[399684740,1766620240516,-500.0,0.00016973,2]
[399684741,1766620240526,-500.0,0.00016973,2]
[399684742,1766620240537,-150.0,0.00016973,2]
[399684743,1766620240547,-156.00450993,0.00016986,2]
[399684744,1766620240557,-216.0,0.00016994,2]
[399684745,1766620240567,-300.0,0.00016999,2]
[399684746,1766620240578,-671.0702352,0.00016999,2]
[399684747,1766620240588,-300.0,0.00016999,2]
[399684748,1766620240600,-666.0,0.00016999,2]
[399684749,1766620240610,-300.0,0.00016999,2]
[399684750,1766620240620,-300.0,0.00016999,2]
[399684751,1766620240630,-3690724.03782557,0.00017,2]
[399684752,1766620240650,-456.2420658,0.00017,2]
[399684755,1766620240721,-93844.9943089,0.00017,2]
[399684756,1766620240734,-873.39,0.00017,2]
[399684757,1766620240747,-919.38,0.00017,2]
[399684758,1766620241168,-209.82756372,0.00016217,2]
[399684759,1766620241178,-1235.88818909,0.00017,2]
[399684760,1766620241283,-969.32991536,0.00017,2]
[399684761,1766620241295,-905.92890062,0.00017,2]
[399684762,1766620241307,-968471.30093694,0.00017,2]
[399684763,1766620241318,-992070.74196791,0.00017,2]
[399684764,1766620241333,-200.0,0.00017,2]
[399684765,1766620241343,-213.992262,0.00017,2]
[399684766,1766620241354,-151.0,0.00017,2]
[399684767,1766620241364,-200.0,0.00017,2]
[399684768,1766620241374,-151.0,0.00017,2]
[399684769,1766620241383,-151.0,0.00017,2]
[399684770,1766620241393,-275.32291,0.00017,2]
[399684771,1766620241403,-151.0,0.00017,2]
[399684772,1766620241413,-205.434949,0.00017,2]
[399684773,1766620241423,-561.89187846,0.00017,2]
[399684774,1766620241433,-291.0,0.00017064,2]
[399684775,1766620241442,-166.66,0.0001708,2]
[399684776,1766620241453,-152.19337656,0.0001715,2]
[399684777,1766620241463,-291.0,0.00017156,2]
[399684778,1766620241473,-200.0,0.0001717,2]
[399684779,1766620241483,-291.0,0.00017184,2]
[399684780,1766620241493,-279.0,0.00017189,2]
[399684781,1766620241503,-1609.0,0.00017221,2]
[399684782,1766620241513,-612.0,0.00017221,2]
[399684783,1766620241523,-3458.0,0.00017221,2]
[399684784,1766620241533,-1326.0,0.00017221,2]
[399684785,1766620241542,-1263.0,0.00017221,2]
[399684786,1766620241552,-432.0,0.00017221,2]
[399684787,1766620241562,-1198.0,0.00017221,2]
[399684788,1766620241572,-912.0,0.00017221,2]
[399684789,1766620241582,-150.0,0.00017221,2]
[399684790,1766620241592,-4807.0,0.00017221,2]
[399684791,1766620241603,-2430.0,0.00017221,2]
[399684792,1766620241613,-433.0,0.00017243,2]
[399684793,1766620241623,-291.0,0.00017275,2]
[399684794,1766620241633,-291.0,0.00017318,2]
[399684795,1766620241642,-200.0,0.00017342,2]
[399684796,1766620241652,-4261.67,0.00017351,2]
[399684797,1766620241663,-152.19337656,0.000174,2]
[399684798,1766620241673,-151.42395308,0.00017424,2]
[399684799,1766620241683,-168.0,0.00017461,2]
[399684800,1766620241699,-500.0,0.00017521,2]
[399684801,1766620241711,-500.0,0.00017521,2]
[399684802,1766620241722,-353.92874992,0.00017521,2]
[399684803,1766620241732,-500.0,0.00017521,2]
[399684804,1766620241744,-500.0,0.00017521,2]
[399684805,1766620241755,-168.0,0.00017531,2]
[399684806,1766620241766,-291.0,0.00017541,2]
[399684807,1766620241776,-168.0,0.00017555,2]
[399684808,1766620241786,-166.66,0.00017578,2]
[399684809,1766620241797,-291.0,0.00017581,2]
[399684810,1766620241807,-152.19337656,0.0001765,2]
[399684811,1766620241818,-384.79665381,0.00017703,2]
[399684812,1766620241829,-291.0,0.00017788,2]
[399684813,1766620241844,-161.06,0.00017794,2]
[399684814,1766620241854,-2000.0,0.000178,2]
[399684815,1766620241864,-500.0,0.00017808,2]
[399684816,1766620241874,-1000.0,0.0001781,2]
[399684817,1766620241884,-500.0,0.00017835,2]
[399684818,1766620241894,-155.59167587,0.00017863,2]
[399684819,1766620241904,-168.0,0.00017874,2]
[399684820,1766620241914,-291.0,0.00017884,2]
[399684821,1766620241931,-1500.00387024,0.000179,2]
[399684822,1766620241941,-152.19337656,0.000179,2]
[399684823,1766620241952,-12584.9,0.00017932,2]
[399684824,1766620241962,-322.6107,0.00017944,2]
[399684825,1766620241972,-333.54777997,0.00017944,2]
[399684826,1766620241982,-500.0,0.00017944,2]
[399684827,1766620241992,-500.0,0.00017944,2]
[399684828,1766620242002,-500.0,0.00017944,2]
[399684829,1766620242012,-500.0,0.00017944,2]
[399684830,1766620242022,-578.20924308,0.00017944,2]
[399684831,1766620242032,-250.0,0.00017944,2]
[399684832,1766620242042,-250.0,0.00017944,2]
[399684833,1766620242052,-250.0,0.00017944,2]
[399684834,1766620242066,-169.97391259,0.00017944,2]
[399684835,1766620242076,-574.12855637,0.00017944,2]
[399684836,1766620242086,-500.0,0.00017944,2]